bitfinex/quotes_ETHUSD_20250217
["timestamp","ask_amount","ask_price","bid_price","bid_amount"]
[1739823059641,0.19113868,2731.8,2731.7,0.7643]
[1739823059851,0.19113868,2731.8,2731.7,4.42502]
[1739823060137,4.17100231,2732.0,2731.7,4.42496]
[1739823060340,4.17100231,2732.0,2731.7,0.7643]
[1739823060493,3.66065,2731.8,2731.6,0.00549128]
[1739823060692,4.17100231,2731.7,2731.6,0.00549128]
[1739823061223,4.17100231,2732.0,2731.6,3.66623128]
[1739823061431,4.17100231,2732.0,2731.7,3.66065]
[1739823061742,4.17100231,2732.0,2731.9,0.8235]
[1739823061897,4.17100231,2732.0,2731.9,4.48395]
[1739823062527,0.00549028,2732.1,2732.0,3.66032]
[1739823063740,0.00549028,2732.1,2731.9,8.958847]
[1739823063947,0.00549028,2732.1,2732.0,3.66032]
[1739823064786,0.00549028,2732.1,2732.0,4.47802358]
[1739823064986,0.00549028,2732.1,2732.0,4.47801719]
[1739823065171,0.00549028,2732.1,2732.0,5.37330861]
[1739823067211,2.8e-07,2732.1,2732.0,8.37330861]
[1739823067421,2.8e-07,2732.1,2732.0,8.33671142]
[1739823068124,9.95e-06,2732.4,2732.3,6.65992]
[1739823068323,9.95e-06,2732.4,2732.3,9.09450374]
[1739823068479,9.07e-06,2732.7,2732.6,8.02551]
[1739823069440,0.005,2733.4,2733.3,4.47458]
[1739823069441,6.3e-06,2733.4,2733.3,4.47458]
[1739823069587,6.3e-06,2733.4,2733.3,7.47458]
[1739823069788,6.3e-06,2733.4,2733.3,8.58791]
[1739823073882,6.3e-06,2733.4,2733.3,5.58791]
[1739823074087,6.3e-06,2733.4,2733.2,3.65867]
[1739823074331,6.3e-06,2733.4,2732.9,3.65903]
[1739823074495,4.4322663,2733.4,2732.9,3.65903]
[1739823075440,6.3e-06,2733.4,2733.1,3.65882]
[1739823075639,6.3e-06,2733.4,2732.9,7.31807]
[1739823075984,6.3e-06,2733.4,2732.9,3.65903]
[1739823076190,4.44195389,2733.4,2732.7,4.45222]
[1739823076390,3.65875,2733.2,2732.7,3.65932]
[1739823076640,4.44725,2733.2,2732.7,3.65932]
[1739823076936,0.7885,2733.2,2732.5,0.7931]
[1739823077116,0.7885,2733.2,2732.5,0.82969231]
[1739823077327,0.7885,2733.2,2732.8,3.65921]
[1739823077720,0.7885,2733.2,2732.7,3.65927]
[1739823077927,0.7885,2733.2,2732.8,3.65924]
[1739823078316,6.3e-06,2733.4,2732.8,0.365924]
[1739823078539,6.3e-06,2733.4,2733.0,3.6589]
[1739823078950,6.3e-06,2733.4,2732.9,3.65909]
[1739823079140,6.3e-06,2733.4,2733.0,3.65886]
[1739823079742,6.3e-06,2733.4,2733.0,4.48226]
[1739823080136,6.3e-06,2733.4,2733.2,3.65861]
[1739823080343,6.3e-06,2733.4,2733.3,3.65858]
[1739823082187,6.3e-06,2733.4,2733.3,4.47128]
[1739823082768,6.3e-06,2733.4,2733.3,7.50785825]
[1739823083075,6.3e-06,2733.4,2733.3,7.47128]
[1739823083622,3.56e-06,2733.6,2733.5,7.44181]
[1739823083859,3.56e-06,2733.6,2733.5,8.851835]
[1739823084039,3.56e-06,2733.6,2733.5,5.851835]
[1739823086270,3.56e-06,2733.6,2733.5,5.88841227]
[1739823086456,3.56e-06,2733.6,2733.5,5.851835]
[1739823088082,3.56e-06,2733.6,2733.4,3.65844]
[1739823088232,3.56e-06,2733.6,2733.2,3.65863]
[1739823088428,3.56e-06,2733.6,2733.1,0.76318827]
[1739823088429,0.8114,2733.5,2733.1,0.00548827]
[1739823088636,3.65858,2733.3,2733.1,0.00548827]
[1739823089076,4.47011,2733.2,2733.1,0.00548827]
[1739823089235,4.88867923,2733.2,2733.1,0.00548827]
[1739823089766,5.67827923,2733.2,2733.1,0.00548827]
[1739823091807,2.01956923,2733.2,2733.1,0.00548827]
[1739823091959,4.44831,2733.2,2733.1,0.00548827]
[1739823094787,7.44831,2733.2,2733.1,0.00548827]
[1739823095501,0.7896,2733.2,2733.1,0.00548827]
[1739823096502,4.97120587,2733.6,2733.1,0.00548827]
[1739823096886,4.97120587,2733.6,2733.3,3.65848]
[1739823097503,4.97120587,2733.6,2733.1,3.66421827]
[1739823097705,5.46832646,2733.6,2733.1,0.00548827]
[1739823097936,3.65852,2733.4,2733.1,0.00548827]
[1739823098134,7.82959231,2733.3,2733.1,0.00548827]
[1739823098352,0.8002,2733.2,2733.1,0.00548827]
[1739823098579,4.45891,2733.2,2733.1,0.00548827]
[1739823098849,0.8002,2733.2,2733.1,0.00548827]
[1739823103771,4.45891,2733.2,2733.1,0.00548827]
[1739823104122,5.87881048,2733.2,2733.1,0.00548827]
[1739823104666,6.42881048,2733.2,2733.1,0.00548827]
[1739823106728,5.72861048,2733.2,2733.1,0.00548827]
[1739823106929,18.67761048,2733.2,2733.1,0.00548827]
[1739823107128,21.07961048,2733.2,2733.1,0.00548827]
[1739823107736,21.80133628,2733.2,2733.1,0.00548827]
[1739823108952,5.07441,2732.9,2732.8,0.00548887]
[1739823109159,19.85695231,2732.9,2732.8,0.00548887]
[1739823110434,10.04395231,2732.9,2732.8,0.00548887]
[1739823113192,19.85695231,2732.9,2732.8,0.00548887]
[1739823113328,22.05895231,2732.9,2732.8,0.00548887]
[1739823115380,25.05895231,2732.9,2732.8,0.00548887]
[1739823115680,6.73321,2732.6,2732.2,0.00549008]
[1739823115885,10.83092231,2732.3,2732.2,0.00549008]
[1739823117080,11.60262231,2732.3,2732.2,0.00549008]
[1739823117579,21.31762231,2732.3,2732.2,0.00549008]
[1739823117782,6.73402,2732.0,2731.9,0.00549068]
[1739823117964,23.8461429,2732.0,2731.9,0.00549068]
[1739823118368,24.3961429,2732.0,2731.9,0.00549068]
[1739823118600,24.2961429,2732.0,2731.9,0.00549068]
[1739823118910,24.3961429,2732.0,2731.9,0.00549068]
[1739823119268,20.22514059,2732.0,2731.9,0.00549068]
[1739823119470,24.2961429,2732.0,2731.9,0.00549068]
[1739823119669,24.3961429,2732.0,2731.9,0.00549068]
[1739823121119,22.1941429,2732.0,2731.9,0.00549068]
[1739823121669,3.66072,2731.7,2731.3,0.00549189]
[1739823121867,22.46155331,2731.7,2731.3,0.00549189]
[1739823122771,3.66112,2731.4,2731.3,0.00549189]
[1739823123068,7.83212231,2731.4,2731.3,0.00549189]
[1739823123792,4.17100231,2731.4,2731.3,0.00549189]
[1739823124190,7.83212231,2731.4,2731.3,0.00549189]
[1739823124440,1.34048568,2731.4,2731.3,0.00549189]
[1739823124650,4.36217376,2731.4,2731.3,0.00549189]
[1739823124808,7.36217376,2731.4,2731.3,0.00549189]
[1739823125213,4.36217376,2731.4,2731.3,3.66675189]
[1739823125430,4.17100231,2731.7,2731.3,0.00549189]
[1739823125631,4.17100231,2731.4,2731.3,0.00549189]
[1739823125813,4.36216574,2731.7,2731.4,0.7568]
[1739823126016,4.36216574,2731.7,2731.4,4.41783]
[1739823126233,4.36216574,2731.7,2731.5,3.66087]
[1739823126440,0.19116343,2731.7,2731.5,3.66087]
[1739823126602,4.17100231,2732.3,2731.9,3.66037]
[1739823126797,4.17100231,2732.3,2731.7,3.66065]
[1739823126996,0.19112385,2732.2,2731.7,3.66064]
[1739823127314,3.19112385,2732.2,2731.8,3.66057]
[1739823127539,3.19112385,2732.2,2731.9,3.66038]
[1739823127857,3.19112385,2732.2,2732.0,0.7732]
[1739823128461,0.00548967,2732.4,2732.1,3.66018]
[1739823128616,0.00548967,2732.4,2732.3,3.65992]
[1739823129261,0.00548967,2732.4,2732.3,4.48922]
[1739823129460,0.00548967,2732.4,2732.3,5.34440301]
[1739823129610,0.00548967,2732.4,2732.3,5.30780692]
[1739823131312,0.00548967,2732.4,2732.3,4.48922]
[1739823132010,0.00548967,2732.4,2732.3,4.52581626]
[1739823132566,0.00548967,2732.4,2732.3,4.48922]
[1739823134230,0.00548967,2732.4,2732.3,4.52581358]
[1739823134646,9.67e-06,2732.4,2732.3,4.52581358]
[1739823134841,9.67e-06,2732.4,2732.3,5.34439994]
[1739823135233,9.67e-06,2732.4,2732.3,5.89439994]
[1739823136156,8.74e-06,2732.7,2732.6,3.65951]
[1739823136467,8.74e-06,2732.7,2732.6,7.4586949]
[1739823136677,8.74e-06,2732.7,2732.6,7.42211]
[1739823136837,8.74e-06,2732.7,2732.6,9.11686776]
[1739823137019,8.74e-06,2732.7,2732.6,8.530285]
[1739823137226,8.74e-06,2732.7,2732.6,5.530285]
[1739823138167,8.74e-06,2732.7,2732.6,4.42211]
[1739823138467,8.74e-06,2732.7,2732.6,0.7626]
[1739823139125,8.74e-06,2732.7,2732.5,3.65957]
[1739823139319,8.74e-06,2732.7,2732.3,5.23493636]
[1739823139320,8.74e-06,2732.7,2732.3,4.41634]
[1739823139551,8.74e-06,2732.7,2732.4,3.65976]
[1739823139858,8.74e-06,2732.7,2732.4,3.65971]
[1739823140165,8.74e-06,2732.7,2732.5,3.65963]
[1739823140534,8.74e-06,2732.7,2732.5,3.65957]
[1739823140716,8.74e-06,2732.7,2732.3,0.7565]
[1739823141165,8.74e-06,2732.7,2732.6,3.65951]
[1739823141469,8.74e-06,2732.7,2732.6,3.6961033]
[1739823141647,8.74e-06,2732.7,2732.6,4.47311]
[1739823142974,8.74e-06,2732.7,2732.4,3.6597]
[1739823143144,8.74e-06,2732.7,2732.5,3.65953]
[1739823143483,8.74e-06,2732.7,2732.6,3.65951]
[1739823144635,8.74e-06,2732.7,2732.6,5.2168052]
[1739823145274,8.74e-06,2732.7,2732.6,5.180214]
[1739823145662,8.74e-06,2732.7,2732.6,5.21680255]
[1739823146233,8.74e-06,2732.7,2732.6,5.180214]
[1739823146576,8.74e-06,2732.7,2732.6,5.21680259]
[1739823146784,8.74e-06,2732.7,2732.6,5.180214]
[1739823147359,8.74e-06,2732.7,2732.6,5.21680257]
[1739823147769,8.74e-06,2732.7,2732.6,5.180214]
[1739823147970,8.74e-06,2732.7,2732.6,8.21679884]
[1739823148153,8.74e-06,2732.7,2732.6,8.180214]
[1739823149140,8.74e-06,2732.7,2732.6,5.180214]
[1739823149340,8.74e-06,2732.7,2732.6,4.44831]
[1739823150260,8.74e-06,2732.7,2732.6,4.48490035]
[1739823150496,8.74e-06,2732.7,2732.6,4.44831]
[1739823151656,8.74e-06,2732.7,2732.6,4.48490035]
[1739823154315,8.74e-06,2732.7,2732.6,4.44831]
[1739823154458,8.74e-06,2732.7,2732.6,5.259094]
[1739823157182,8.74e-06,2732.7,2732.6,5.29568057]
[1739823159681,8.74e-06,2732.7,2732.6,5.259094]
[1739823160078,8.74e-06,2732.7,2732.6,5.29568256]
[1739823160418,8.74e-06,2732.7,2732.6,5.259094]
[1739823160625,8.74e-06,2732.7,2732.6,5.29567961]
[1739823160925,8.74e-06,2732.7,2732.6,5.259094]
[1739823163521,8.74e-06,2732.7,2732.6,5.2956802]
[1739823167232,8.74e-06,2732.7,2732.6,8.8456802]
[1739823167536,0.00548787,2733.3,2732.6,8.8456802]
[1739823167537,0.00548787,2733.3,2733.0,0.55]
[1739823167760,0.00548787,2733.3,2733.2,3.65871]
[1739823168094,7.87e-06,2733.3,2733.2,4.99958895]
[1739823168310,7.87e-06,2733.3,2733.2,7.99958895]
[1739823168647,7.87e-06,2733.3,2733.2,7.96301]
[1739823170632,7.87e-06,2733.3,2733.2,8.683044]
[1739823170831,7.87e-06,2733.3,2733.2,10.38905361]
[1739823171141,7.87e-06,2733.3,2733.2,10.48905361]
[1739823171346,3.56e-06,2733.6,2733.5,4.41701]
[1739823171511,3.56e-06,2733.6,2733.5,5.00357797]
[1739823172924,3.56e-06,2733.6,2733.5,5.00357897]
[1739823173124,3.56e-06,2733.6,2733.5,6.16978087]
[1739823176060,2.2e-07,2733.9,2733.8,8.01431]
[1739823179467,2.2e-07,2733.9,2733.8,8.75996468]
[1739823180282,2.2e-07,2733.9,2733.8,8.20996468]
[1739823180490,2.2e-07,2733.9,2733.8,7.40356468]
[1739823181652,2.2e-07,2733.9,2733.8,4.40356468]
[1739823182568,2.2e-07,2733.9,2733.8,3.65791]
[1739823182885,0.7723,2733.8,2733.4,0.00548767]
[1739823183392,0.7723,2733.8,2733.4,3.66392767]
[1739823184072,1.62955113,2733.8,2733.4,0.00548767]
[1739823184274,4.14231108,2733.6,2733.4,0.00548767]
[1739823184459,0.7725,2733.5,2733.4,0.00548767]
[1739823186894,4.43081,2733.5,2733.4,0.00548767]
[1739823187187,0.7725,2733.5,2733.4,0.00548767]
[1739823188175,0.7725,2733.8,2733.4,3.66392767]
[1739823188496,2.2e-07,2733.9,2733.5,0.7621]
[1739823188694,2.2e-07,2733.9,2733.8,7.20791]
[1739823189045,0.00548606,2734.2,2734.1,3.65751]
[1739823189605,6.06e-06,2734.2,2734.1,8.00427734]
[1739823189910,6.06e-06,2734.2,2734.1,9.13390173]
[1739823190090,6.06e-06,2734.4,2734.3,3.65724]
[1739823190272,6.06e-06,2734.4,2734.3,4.20724]
[1739823193487,6.06e-06,2734.4,2734.3,3.65724]
[1739823195084,6.06e-06,2734.4,2734.1,3.65737]
[1739823195836,6.06e-06,2734.4,2734.2,3.65737]
[1739823196039,6.06e-06,2734.4,2734.0,0.00548646]
[1739823196185,0.7939,2734.2,2734.0,0.00548646]
[1739823196379,1.23902261,2734.2,2734.0,0.00548646]
[1739823196699,3.65751,2734.1,2734.0,0.00548646]
[1739823197598,3.60751,2734.1,2734.0,0.00548646]
[1739823197929,4.89648261,2734.2,2734.0,0.00548646]
[1739823198125,1.23902261,2734.2,2734.0,0.00548646]
[1739823198437,0.7939,2734.2,2734.1,3.65751]
[1739823199683,6.06e-06,2734.4,2734.3,3.65724]
[1739823199887,6.06e-06,2734.4,2734.2,3.65737]
[1739823200118,6.06e-06,2734.4,2734.0,3.66304646]
[1739823200316,3.65718606,2734.4,2734.0,0.00548646]
[1739823200642,0.45727653,2734.3,2734.0,0.00548646]
[1739823200838,3.65751,2734.1,2734.0,0.00548646]
[1739823201009,4.4737,2734.2,2734.0,0.00548646]
[1739823201214,3.65751,2734.1,2734.0,0.00548646]
[1739823201524,4.47371,2734.1,2734.0,0.00548646]
[1739823201728,5.85092477,2734.1,2734.0,0.00548646]
[1739823202091,15.00992477,2734.1,2734.0,0.00548646]
[1739823202492,2.19341477,2734.1,2734.0,0.00548646]
[1739823202730,5.85092477,2734.1,2734.0,0.00548646]
[1739823203313,2.19341477,2734.1,2734.0,0.00548646]
[1739823204746,0.8162,2734.1,2734.0,0.00548646]
[1739823205599,0.78800606,2734.4,2734.2,3.65728]
[1739823205794,6.06e-06,2734.4,2734.3,3.65724]
[1739823206543,6.06e-06,2734.4,2734.3,4.45154]
[1739823207839,6.06e-06,2734.4,2734.3,4.48810748]
[1739823207995,6.06e-06,2734.4,2734.3,5.26607875]
[1739823209636,6.06e-06,2734.4,2734.3,4.47177875]
[1739823210345,6.06e-06,2734.4,2734.3,4.50834595]
[1739823210643,6.06e-06,2734.4,2734.3,4.47177875]
[1739823215205,6.06e-06,2734.4,2734.3,3.65724]
[1739823221354,6.06e-06,2734.4,2734.2,3.65728]
[1739823221561,6.06e-06,2734.4,2734.0,3.66301646]
[1739823221944,4.44576,2734.3,2734.0,0.00548646]
[1739823222460,3.65739,2734.2,2734.0,0.00548646]
[1739823222661,9.40862146,2734.1,2734.0,0.00548646]
[1739823222820,8.59830646,2734.1,2734.0,0.00548646]
[1739823224768,4.46091,2734.1,2734.0,0.00548646]
[1739823228168,0.8034,2734.1,2734.0,0.00548646]
[1739823228340,4.46091,2734.1,2734.0,0.00548646]
[1739823228539,5.27274,2734.1,2734.0,0.00548646]
[1739823230303,1.61523,2734.1,2734.0,0.00548646]
[1739823230512,5.27274,2734.1,2734.0,0.00548646]
[1739823231131,5.46374663,2734.1,2734.0,0.00548646]
[1739823232730,0.99440663,2734.1,2734.0,0.00548646]
[1739823234391,4.65191663,2734.1,2734.0,0.00548646]
[1739823234639,0.99440663,2734.1,2734.0,0.00548646]
[1739823235394,4.65191663,2734.1,2734.0,0.00548646]
[1739823236094,0.99440663,2734.1,2734.0,0.00548646]
[1739823236491,0.19100663,2734.1,2734.0,3.66312646]
[1739823236687,6.06e-06,2734.4,2734.0,4.02943911]
[1739823236892,6.06e-06,2734.4,2734.0,0.00548646]
[1739823237130,6.06e-06,2734.4,2734.2,3.65726]
[1739823237339,6.06e-06,2734.4,2734.3,3.65724]
[1739823237700,6.06e-06,2734.4,2734.1,3.65743]
[1739823239441,6.06e-06,2734.4,2734.2,3.65731]
[1739823239628,6.06e-06,2734.4,2734.3,3.65724]
[1739823239946,6.06e-06,2734.4,2734.1,3.6575]
[1739823240893,6.06e-06,2734.4,2734.0,0.00548646]
[1739823240894,0.8145,2734.3,2734.0,0.00548646]
[1739823241098,3.65738,2734.2,2734.0,0.00548646]
[1739823241427,0.447188,2734.1,2734.0,0.00548646]
[1739823241612,4.47174,2734.3,2734.0,0.00548646]
[1739823242150,0.8145,2734.3,2734.0,0.00548646]
[1739823242352,6.06e-06,2734.4,2734.0,0.00548646]
[1739823242639,6.06e-06,2734.4,2734.1,3.65741]
[1739823243217,6.06e-06,2734.4,2734.0,3.66304646]
[1739823243414,6.06e-06,2734.4,2734.3,3.65724]
[1739823244552,6.06e-06,2734.4,2734.2,3.65736]
[1739823244849,6.06e-06,2734.4,2734.3,3.65724]
[1739823245531,6.06e-06,2734.4,2734.3,4.45054]
[1739823249340,6.06e-06,2734.4,2734.3,7.48710618]
[1739823249527,6.06e-06,2734.4,2734.3,8.97878278]
[1739823251049,6.06e-06,2734.4,2734.3,5.97878278]
[1739823269601,5.32e-06,2734.5,2734.4,3.6571]
[1739823269961,5.32e-06,2734.5,2734.4,3.69366685]
[1739823270303,5.32e-06,2734.5,2734.4,3.6571]
[1739823270455,5.32e-06,2734.5,2734.4,5.40022044]
[1739823271974,5.32e-06,2734.5,2734.4,6.12535815]
[1739823272431,5.32e-06,2734.5,2734.4,6.16192018]
[1739823272573,5.32e-06,2734.5,2734.4,10.50702018]
[1739823272779,4.44e-06,2735.1,2734.8,0.7951]
[1739823273080,4.44e-06,2735.1,2735.0,3.6563]
[1739823274733,4.44e-06,2735.1,2735.0,8.0015531]
[1739823275026,8.09e-06,2735.4,2735.3,11.55256159]
[1739823275376,0.00548245,2736.0,2735.6,3.6555]
[1739823275582,0.00548245,2736.0,2735.6,7.762483]
[1739823277318,0.00548245,2736.0,2735.6,8.51264592]
[1739823278120,0.00548245,2736.0,2735.6,3.6555]
[1739823278428,0.82498305,2735.7,2735.6,3.6555]
[1739823278635,0.00548305,2735.7,2735.6,3.6555]
[1739823278989,0.00548305,2735.7,2735.6,4.45075117]
[1739823279230,0.00548305,2735.7,2735.6,4.4142]
[1739823279530,0.00548305,2735.7,2735.6,5.521183]
[1739823280521,0.00548305,2735.7,2735.6,4.4142]
[1739823280831,0.00548305,2735.7,2735.6,3.6555]
[1739823282435,0.00548305,2735.7,2735.6,8.55216159]
[1739823282634,0.00548305,2735.7,2735.6,12.10216159]
[1739823282994,0.00548305,2735.7,2735.6,7.9642]
[1739823283195,0.00548305,2735.7,2735.6,9.126183]
[1739823283395,0.00548305,2735.7,2735.6,8.576183]
[1739823284150,0.00548305,2735.7,2735.5,3.65562]
[1739823284949,0.00548305,2735.7,2735.3,4.39070119]
[1739823284950,0.00548305,2735.7,2735.3,3.65577]
[1739823285242,3.65566,2735.5,2735.2,0.00548405]
[1739823285409,3.65582,2735.4,2735.2,0.00548405]
[1739823285747,1.483448,2735.3,2735.2,0.00548405]
[1739823286093,5.139348,2735.3,2735.2,0.00548405]
[1739823286296,5.150948,2735.3,2735.2,0.00548405]
[1739823286600,8.150948,2735.3,2735.2,0.00548405]
[1739823286842,17.305948,2735.3,2735.2,0.00548405]
[1739823287237,17.855948,2735.3,2735.2,4.05e-06]
[1739823288127,17.855948,2735.3,2734.6,0.00548526]
[1739823288128,3.6567,2734.7,2734.6,0.00548526]
[1739823288292,20.74556159,2734.7,2734.6,0.00548526]
[1739823290438,21.29556159,2734.7,2734.6,5.26e-06]
[1739823290643,0.82,2734.4,2734.3,0.00548586]
[1739823290937,17.50896159,2734.4,2734.3,0.00548586]
[1739823294263,21.16606159,2734.4,2734.3,0.00548586]
[1739823295323,21.71606159,2734.4,2734.3,0.00548586]
[1739823296755,0.55,2734.2,2734.0,6.46e-06]
[1739823296934,21.63927159,2734.1,2734.0,6.46e-06]
[1739823297136,11.92927159,2734.1,2734.0,6.46e-06]
[1739823297938,21.08827159,2734.1,2734.0,6.46e-06]
[1739823299838,21.73827159,2734.1,2734.0,6.46e-06]
[1739823300240,4.47351,2733.8,2733.7,7.06e-06]
[1739823300565,21.88560059,2733.8,2733.7,7.06e-06]
[1739823301241,24.08760059,2733.8,2733.7,7.06e-06]
[1739823301641,21.88560059,2733.8,2733.7,7.06e-06]
[1739823302031,12.72460059,2733.8,2733.7,7.06e-06]
[1739823302232,4.95316159,2734.1,2733.7,7.06e-06]
[1739823302776,3.65791,2733.8,2733.7,7.06e-06]
[1739823304071,7.31564,2733.9,2733.7,7.06e-06]
[1739823304275,3.1910181,2734.0,2733.7,7.06e-06]
[1739823304443,6.8487081,2734.0,2733.7,7.06e-06]
[1739823304644,3.8487081,2734.0,2733.7,7.06e-06]
[1739823304832,0.1910181,2734.0,2733.9,3.65777]
[1739823305169,3.66252546,2734.5,2733.9,4.38934171]
[1739823305328,0.19096227,2734.3,2733.7,7.06e-06]
[1739823305532,3.65791,2733.8,2733.7,7.06e-06]
[1739823305950,7.48461,2733.8,2733.7,7.06e-06]
[1739823306393,16.64561,2733.8,2733.7,7.06e-06]
[1739823306897,3.0,2733.8,2733.7,7.06e-06]
[1739823307189,3.65772,2734.0,2733.7,7.06e-06]
[1739823307387,4.14344765,2734.2,2733.7,7.06e-06]
[1739823307557,7.80089765,2734.2,2733.7,7.06e-06]
[1739823307762,0.00548606,2734.2,2733.9,3.65773]
[1739823307963,0.00548606,2734.2,2734.1,3.65751]
[1739823309151,0.00548606,2734.2,2733.9,0.7613]
[1739823309352,3.66288606,2734.2,2733.9,0.7613]
[1739823309991,3.00548606,2734.2,2733.7,7.06e-06]
[1739823310199,3.65781,2733.9,2733.7,7.06e-06]
[1739823310399,3.65791,2733.8,2733.7,7.06e-06]
[1739823310564,3.65781,2733.9,2733.7,7.06e-06]
[1739823310768,4.45131,2733.8,2733.7,7.06e-06]
[1739823312331,13.61231,2733.8,2733.7,7.06e-06]
[1739823312635,15.95491816,2733.8,2733.7,7.06e-06]
[1739823312797,21.70691816,2733.8,2733.7,7.06e-06]
[1739823313183,21.90691816,2733.8,2733.7,7.06e-06]
[1739823314001,28.04487975,2733.8,2733.7,7.06e-06]
[1739823314202,8.63531,2733.5,2733.4,7.67e-06]
[1739823314398,9.63781,2733.2,2732.8,0.00548887]
[1739823314734,23.48877159,2733.2,2732.8,0.00548887]
[1739823314898,23.68877159,2733.2,2732.8,0.00548887]
[1739823315235,10.18821,2732.9,2732.8,0.00548887]
[1739823315429,23.49017159,2732.9,2732.8,0.00548887]
[1739823315634,24.06214065,2732.9,2732.8,0.00548887]
[1739823315863,24.06214065,2732.9,2732.8,8.87e-06]
[1739823316004,6.83848,2732.7,2732.6,0.14880887]
[1739823316205,8.46348,2732.7,2732.6,0.14880887]
[1739823316609,7.71348,2732.7,2732.6,0.14880887]
[1739823316804,8.09336861,2732.7,2732.6,0.14880887]
[1739823317106,8.64336861,2732.7,2732.6,0.14880887]
[1739823317339,8.64336861,2732.7,2732.6,8.87e-06]
[1739823317510,8.84336861,2732.7,2732.6,8.87e-06]
[1739823318253,9.25297159,2732.6,2732.5,8.34e-06]
[1739823318548,20.29589561,2732.6,2732.5,8.34e-06]
[1739823318957,20.4749464,2732.6,2732.5,8.34e-06]
[1739823319552,20.19589561,2732.6,2732.5,8.34e-06]
[1739823319756,19.92289561,2732.6,2732.5,8.34e-06]
[1739823320353,20.47289561,2732.6,2732.5,8.34e-06]
[1739823320957,22.57289561,2732.6,2732.5,8.34e-06]
[1739823321158,29.7108572,2732.6,2732.5,8.34e-06]
[1739823321753,29.7108572,2732.6,2731.9,0.00549068]
[1739823321754,4.68222,2732.3,2731.9,0.00549068]
[1739823322065,24.73638159,2732.3,2732.2,8e-08]
[1739823322263,22.73638159,2732.3,2732.2,8e-08]
[1739823322573,22.53638159,2732.3,2732.2,8e-08]
[1739823323260,18.39842,2732.3,2732.2,8e-08]
[1739823324031,17.84842,2732.3,2732.2,8e-08]
[1739823324255,9.167,2732.3,2732.2,8e-08]
[1739823324428,4.13796159,2732.5,2732.2,8e-08]
[1739823324627,3.6598,2732.4,2732.2,8e-08]
[1739823325232,3.65992,2732.3,2732.2,8e-08]
[1739823325424,15.82492,2732.3,2732.2,8e-08]
[1739823325624,21.91135359,2732.3,2732.2,8e-08]
[1739823325819,22.71605359,2732.3,2732.2,8e-08]
[1739823326024,25.46805359,2732.3,2732.2,8e-08]
[1739823326557,22.71605359,2732.3,2732.2,8e-08]
[1739823326761,24.91805359,2732.3,2732.2,8e-08]
[1739823326997,25.46805359,2732.3,2732.2,8e-08]
[1739823327444,21.330092,2732.3,2732.2,8e-08]
[1739823328655,21.52122403,2732.3,2732.2,8e-08]
[1739823329478,15.65930403,2732.3,2732.2,8e-08]
[1739823329768,21.24822403,2732.3,2732.2,8e-08]
[1739823329973,19.04622403,2732.3,2732.2,8e-08]
[1739823330968,21.79822403,2732.3,2732.2,8e-08]
[1739823331381,21.89822403,2732.3,2732.2,8e-08]
[1739823331582,21.79822403,2732.3,2732.2,8e-08]
[1739823332505,2.55,2732.2,2731.9,0.00549068]
[1739823332702,14.35678159,2732.0,2731.9,0.00549068]
[1739823333002,23.52378159,2732.0,2731.9,0.00549068]
[1739823333309,20.52378159,2732.0,2731.9,0.00549068]
[1739823334374,13.30496159,2732.0,2731.9,0.00549068]
[1739823334616,16.96528159,2732.0,2731.9,0.00549068]
[1739823334903,17.49902102,2732.0,2731.9,0.00549068]
[1739823335068,21.00912102,2732.0,2731.9,0.00549068]
[1739823341008,24.20912102,2732.0,2731.9,0.00549068]
[1739823341307,17.31314864,2732.0,2731.9,0.00549068]
[1739823341468,21.45111023,2732.0,2731.9,0.00549068]
[1739823342003,24.45111023,2732.0,2731.9,0.00549068]
[1739823342505,24.00912102,2732.0,2731.9,0.00549068]
[1739823344410,24.28612102,2732.0,2731.9,0.00549068]
[1739823346472,19.39005943,2732.0,2731.9,0.00549068]
[1739823346816,23.52802102,2732.0,2731.9,0.00549068]
[1739823348890,23.71909498,2732.0,2731.9,0.00549068]
[1739823350306,24.16108419,2732.0,2731.9,0.00549068]
[1739823351033,23.71909498,2732.0,2731.9,0.00549068]
[1739823352537,19.58113339,2732.0,2731.9,0.00549068]
[1739823352698,23.71909498,2732.0,2731.9,0.00549068]
[1739823359676,27.57509498,2732.0,2731.9,0.00549068]
[1739823359831,23.71909498,2732.0,2731.9,0.00549068]
[1739823360666,24.16108419,2732.0,2731.9,0.00549068]
[1739823361676,23.71909498,2732.0,2731.9,0.00549068]
[1739823362382,0.19107396,2732.0,2731.9,0.00549068]
[1739823362585,0.19107396,2732.0,2731.9,0.83829068]
[1739823362743,7.98935555,2732.0,2731.9,0.83829068]
[1739823362935,7.98935555,2732.0,2731.9,0.00549068]
[1739823363877,20.15535555,2732.0,2731.9,0.00549068]
[1739823364082,30.82331003,2732.0,2731.9,0.00549068]
[1739823364383,8.86272,2731.7,2731.6,1.96e-06]
[1739823364683,28.9388708,2731.7,2731.6,1.96e-06]
[1739823364926,29.04688159,2731.7,2731.6,1.96e-06]
[1739823365206,25.51468159,2731.7,2731.6,1.96e-06]
[1739823365355,5.27,2731.7,2731.6,1.96e-06]
[1739823365555,5.27,2731.8,2731.6,1.96e-06]
[1739823365752,0.19107396,2732.0,2731.7,4.47054]
[1739823365954,0.19107396,2732.0,2731.7,0.8099]
[1739823366500,3.66059,2731.8,2731.7,0.8099]
[1739823366706,3.66072,2731.7,2731.6,1.96e-06]
[1739823367050,3.0,2731.8,2731.6,1.96e-06]
[1739823367256,6.53103555,2732.0,2731.6,1.96e-06]
[1739823367257,3.85140396,2732.0,2731.6,1.96e-06]
[1739823367802,3.6606,2731.8,2731.6,1.96e-06]
[1739823368210,3.66053,2731.9,2731.6,1.96e-06]
[1739823368537,3.66072,2731.7,2731.6,1.96e-06]
[1739823368811,6.66072,2731.7,2731.6,1.96e-06]
[1739823368988,3.0,2731.7,2731.6,1.96e-06]
[1739823369304,0.191006,2731.7,2731.6,1.96e-06]
[1739823369817,16.018726,2731.7,2731.6,1.96e-06]
[1739823369968,18.9957731,2731.7,2731.6,1.96e-06]
[1739823374410,24.2657731,2731.7,2731.6,1.96e-06]
[1739823375276,17.628006,2731.7,2731.6,1.96e-06]
[1739823375497,5.461006,2731.7,2731.6,1.96e-06]
[1739823377594,9.121726,2731.7,2731.6,1.96e-06]
[1739823378417,5.461006,2731.7,2731.6,1.96e-06]
[1739823379019,8.922526,2731.7,2731.6,1.96e-06]
[1739823380884,5.261806,2731.7,2731.6,1.96e-06]
[1739823381143,0.00549028,2732.1,2731.7,3.66071]
[1739823381433,0.00549028,2732.1,2731.9,0.8064]
[1739823383821,3.66569028,2732.1,2731.9,0.8064]
[1739823384224,0.00549028,2732.1,2731.9,0.8064]
[1739823385251,0.00549028,2732.1,2732.0,3.66032]
[1739823385546,0.00549028,2732.1,2732.0,4.44592]
[1739823385743,0.00549028,2732.1,2732.0,5.256545]
[1739823386247,0.00549028,2732.1,2732.0,5.29314549]
[1739823386545,0.00549028,2732.1,2732.0,5.29314213]
[1739823386917,0.00549028,2732.1,2732.0,5.256545]
[1739823388080,0.00549028,2732.1,2732.0,5.29314212]